fUSD/lending_fUSD_20241223
["ID","MTS","AMOUNT","RATE_DAILY","PERIOD"]
[346393550,1734937840831,-500.0,0.00019178,2]
[346393551,1734937840839,-500.0,0.00019178,2]
[346393552,1734937840849,-500.0,0.00019178,2]
[346393553,1734937840857,-500.0,0.00019178,2]
[346393554,1734937840866,-500.0,0.00019178,2]
[346393555,1734937840875,-500.0,0.00019178,2]
[346393556,1734937840884,-667.63,0.00019178,2]
[346393557,1734937840893,-500.0,0.00019178,2]
[346393558,1734937840902,-500.0,0.00019178,2]
[346393559,1734937840911,-633.0089402,0.00019178,2]
[346393560,1734937840920,-500.0,0.00019178,2]
[346393561,1734937840929,-500.0,0.00019178,2]
[346393562,1734937840938,-556.47695101,0.00019178,2]
[346393563,1734937840947,-500.0,0.00019178,2]
[346393564,1734937840956,-557.22,0.00019178,2]
[346393565,1734937840965,-500.0,0.00019178,2]
[346393566,1734937840974,-527.03,0.00019178,2]
[346393567,1734937840982,-500.0,0.00019178,2]
[346393568,1734937840991,-651.7,0.00019178,2]
[346393569,1734937841000,-500.0,0.00019178,2]
[346393570,1734937841010,-500.0,0.00019178,2]
[346393571,1734937841018,-500.0,0.00019178,2]
[346393572,1734937841027,-500.0,0.00019178,2]
[346393573,1734937841036,-500.0,0.00019178,2]
[346393574,1734937841045,-500.0,0.00019178,2]
[346393575,1734937841054,-500.0,0.00019178,2]
[346393576,1734937841063,-500.0,0.00019178,2]
[346393577,1734937841073,-500.0,0.00019178,2]
[346393578,1734937841082,-500.0,0.00019178,2]
[346393579,1734937841091,-500.0,0.00019178,2]
[346393580,1734937841100,-500.0,0.00019178,2]
[346393581,1734937841109,-502.33,0.00019178,2]
[346393582,1734937841118,-500.0,0.00019178,2]
[346393583,1734937841127,-500.0,0.00019178,2]
[346393584,1734937841136,-500.0,0.00019178,2]
[346393585,1734937841145,-500.0,0.00019178,2]
[346393586,1734937841154,-500.0,0.00019178,2]
[346393587,1734937841163,-500.0,0.00019178,2]
[346393588,1734937841172,-504.27809537,0.00019178,2]
[346393589,1734937841181,-500.0,0.00019178,2]
[346393590,1734937841190,-500.0,0.00019178,2]
[346393591,1734937841199,-500.0,0.00019178,2]
[346393592,1734937841208,-635.87,0.00019178,2]
[346393593,1734937841217,-500.0,0.00019178,2]
[346393594,1734937841226,-500.0,0.00019178,2]
[346393595,1734937841235,-558.8,0.00019178,2]
[346393596,1734937841244,-500.0,0.00019178,2]
[346393597,1734937841253,-500.0,0.00019178,2]
[346393598,1734937841262,-500.0,0.00019178,2]
[346393599,1734937841271,-500.0,0.00019178,2]
[346393600,1734937841280,-500.0,0.00019178,2]
[346393601,1734937841289,-500.0,0.00019178,2]
[346393602,1734937841298,-500.0,0.00019178,2]
[346393603,1734937841306,-500.0,0.00019178,2]
[346393604,1734937841315,-500.0,0.00019178,2]
[346393605,1734937841325,-500.0,0.00019178,2]
[346393606,1734937841334,-500.0,0.00019178,2]
[346393607,1734937841343,-500.0,0.00019178,2]
[346393608,1734937841352,-500.0,0.00019178,2]
[346393609,1734937841361,-500.0,0.00019178,2]
[346393610,1734937841370,-504.97754781,0.00019178,2]
[346393611,1734937841379,-500.0,0.00019178,2]
[346393612,1734937841392,-500.0,0.00019178,2]
[346393613,1734937841401,-500.0,0.00019178,2]
[346393614,1734937841411,-500.0,0.00019178,2]
[346393615,1734937841420,-500.0,0.00019178,2]
[346393616,1734937841429,-500.0,0.00019178,2]
[346393617,1734937841438,-500.0,0.00019178,2]
[346393618,1734937841447,-500.0,0.00019178,2]
[346393619,1734937841457,-500.0,0.00019178,2]
[346393620,1734937841466,-500.0,0.00019178,2]
[346393621,1734937841475,-500.0,0.00019178,2]
[346393622,1734937841484,-500.0,0.00019178,2]
[346393623,1734937841494,-500.0,0.00019178,2]
[346393624,1734937841503,-534.91,0.00019178,2]
[346393625,1734937841513,-500.0,0.00019178,2]
[346393626,1734937841521,-500.0,0.00019178,2]
[346393627,1734937841530,-500.0,0.00019178,2]
[346393628,1734937841539,-551.54,0.00019178,2]
[346393629,1734937841548,-625.59083481,0.00019178,2]
[346393630,1734937841558,-500.0,0.00019178,2]
[346393631,1734937841567,-500.0,0.00019178,2]
[346393632,1734937841577,-500.0,0.00019178,2]
[346393633,1734937841586,-500.0,0.00019178,2]
[346393634,1734937841595,-500.0,0.00019178,2]
[346393635,1734937841606,-500.0,0.00019178,2]
[346393636,1734937841615,-519.23,0.00019178,2]
[346393637,1734937841624,-484.93695107,0.00019178,2]
[346393638,1734937841633,-500.0,0.00019178,2]
[346393639,1734937841642,-263.94802246,0.00019178,2]
[346393640,1734937841651,-216.02310871,0.00019178,2]
[346393641,1734937841660,-500.0,0.00019178,2]
[346393642,1734937841669,-500.0,0.00019178,2]
[346393643,1734937841678,-703.25,0.00019178,2]
[346393644,1734937841687,-500.0,0.00019178,2]
[346393645,1734937841696,-512.85,0.00019178,2]
[346393646,1734937841705,-500.0,0.00019178,2]
[346393647,1734937841715,-500.0,0.00019178,2]
[346393648,1734937841724,-500.0,0.00019178,2]
[346393649,1734937841733,-704.47,0.00019178,2]
[346393650,1734937841743,-172.31108602,0.00019178,2]
[346393651,1734937841752,-500.0,0.00019178,2]
[346393652,1734937841762,-500.0,0.00019178,2]
[346393653,1734937841772,-500.0,0.00019178,2]
[346393654,1734937841781,-500.0,0.00019178,2]
[346393655,1734937841790,-500.0,0.00019178,2]
[346393656,1734937841800,-683.37,0.00019178,2]
[346393657,1734937841809,-500.0,0.00019178,2]
[346393658,1734937841820,-675.51,0.00019178,2]
[346393659,1734937841830,-500.0,0.00019178,2]
[346393660,1734937841839,-386.42847409,0.00019178,2]
[346393661,1734937841849,-500.0,0.00019178,2]
[346393662,1734937841858,-504.18823325,0.00019178,2]
[346393663,1734937841867,-500.0,0.00019178,2]
[346393664,1734937841877,-500.0,0.00019178,2]
[346393665,1734937841886,-500.0,0.00019178,2]
[346393666,1734937841896,-500.0,0.00019178,2]
[346393667,1734937841905,-500.0,0.00019178,2]
[346393668,1734937841914,-500.0,0.00019178,2]
[346393669,1734937841923,-500.0,0.00019178,2]
[346393670,1734937841932,-293.43433204,0.00019178,2]
[346393671,1734937841941,-502.01220109,0.00019178,2]
[346393672,1734937841950,-500.0,0.00019178,2]
[346393673,1734937841959,-262.51433246,0.00019178,2]
[346393674,1734937841969,-500.0,0.00019178,2]
[346393675,1734937841978,-500.0,0.00019178,2]
[346393676,1734937841987,-186.22626482,0.00019178,2]
[346393677,1734937841996,-500.0,0.00019178,2]
[346393678,1734937842005,-500.0,0.00019178,2]
[346393679,1734937842014,-500.0,0.00019178,2]
[346393680,1734937842023,-500.0,0.00019178,2]
[346393681,1734937842033,-500.0,0.00019178,2]
[346393682,1734937842042,-500.0,0.00019178,2]
[346393683,1734937842051,-500.0,0.00019178,2]
[346393684,1734937842060,-500.0,0.00019178,2]
[346393685,1734937842070,-507.17090318,0.00019178,2]
[346393686,1734937842079,-500.0,0.00019178,2]
[346393687,1734937842089,-539.76,0.00019178,2]
[346393688,1734937842098,-500.0,0.00019178,2]
[346393689,1734937842107,-500.0,0.00019178,2]
[346393690,1734937842117,-500.0,0.00019178,2]
[346393691,1734937842125,-500.0,0.00019178,2]
[346393692,1734937842135,-653.26,0.00019178,2]
[346393693,1734937842144,-500.0,0.00019178,2]
[346393694,1734937842154,-500.0,0.00019178,2]
[346393695,1734937842163,-500.0,0.00019178,2]
[346393696,1734937842173,-500.0,0.00019178,2]
[346393697,1734937842182,-646.87,0.00019178,2]
[346393698,1734937842191,-500.0,0.00019178,2]
[346393699,1734937842200,-500.0,0.00019178,2]
[346393700,1734937842357,-500.0,0.00019178,2]
[346393701,1734937842392,-500.0,0.00019178,2]
[346393702,1734937842402,-500.0,0.00019178,2]
[346393703,1734937842412,-500.0,0.00019178,2]
[346393704,1734937842422,-500.0,0.00019178,2]
[346393705,1734937842431,-156.96146027,0.00019178,2]
[346393706,1734937842440,-500.0,0.00019178,2]
[346393707,1734937842449,-506.96831057,0.00019178,2]
[346393708,1734937842459,-500.0,0.00019178,2]
[346393709,1734937842469,-587.49,0.00019178,2]
[346393710,1734937842479,-500.0,0.00019178,2]
[346393711,1734937842488,-500.0,0.00019178,2]
[346393712,1734937842498,-500.0,0.00019178,2]
[346393713,1734937842507,-500.0,0.00019178,2]
[346393714,1734937842516,-500.0,0.00019178,2]
[346393715,1734937842526,-500.0,0.00019178,2]
[346393716,1734937842535,-500.0,0.00019178,2]
[346393717,1734937842544,-500.0,0.00019178,2]
[346393718,1734937842553,-500.0,0.00019178,2]
[346393719,1734937842562,-506.35796509,0.00019178,2]
[346393720,1734937842572,-500.0,0.00019178,2]
[346393721,1734937842581,-500.0,0.00019178,2]
[346393722,1734937842591,-500.0,0.00019178,2]
[346393723,1734937842600,-500.0,0.00019178,2]
[346393724,1734937842610,-500.0,0.00019178,2]
[346393725,1734937842619,-500.0,0.00019178,2]
[346393726,1734937842628,-585.3,0.00019178,2]
[346393727,1734937842638,-502.69955567,0.00019178,2]
[346393728,1734937842647,-500.0,0.00019178,2]
[346393729,1734937842656,-546.17,0.00019178,2]
[346393730,1734937842665,-503.64003236,0.00019178,2]
[346393731,1734937842675,-725.76,0.00019178,2]
[346393732,1734937842684,-500.0,0.00019178,2]
[346393733,1734937842694,-500.0,0.00019178,2]
[346393734,1734937842703,-500.0,0.00019178,2]
[346393735,1734937842712,-500.0,0.00019178,2]
[346393736,1734937842721,-500.0,0.00019178,2]
[346393737,1734937842731,-500.0,0.00019178,2]
[346393738,1734937842740,-500.0,0.00019178,2]
[346393739,1734937842749,-500.0,0.00019178,2]
[346393740,1734937842758,-435.8659459,0.00019178,2]
[346393741,1734937842767,-500.0,0.00019178,2]
[346393742,1734937842776,-500.0,0.00019178,2]
[346393744,1734937842785,-502.50295063,0.00019178,2]
[346393745,1734937842795,-500.0,0.00019178,2]
[346393746,1734937842803,-500.0,0.00019178,2]
[346393747,1734937842812,-500.0,0.00019178,2]
[346393748,1734937842822,-506.18468225,0.00019178,2]
[346393749,1734937842831,-500.0,0.00019178,2]
[346393750,1734937842841,-502.42067536,0.00019178,2]
[346393751,1734937842850,-500.0,0.00019178,2]
[346393752,1734937842860,-500.0,0.00019178,2]
[346393753,1734937842869,-628.28694924,0.00019178,2]
[346393754,1734937842878,-500.0,0.00019178,2]
[346393755,1734937842888,-500.0,0.00019178,2]
[346393756,1734937842897,-500.0,0.00019178,2]
[346393757,1734937842907,-500.0,0.00019178,2]
[346393758,1734937842916,-500.0,0.00019178,2]
[346393759,1734937842925,-509.80357116,0.00019178,2]
[346393760,1734937842935,-500.0,0.00019178,2]
[346393761,1734937842945,-500.0,0.00019178,2]
[346393762,1734937842954,-503.76,0.00019178,2]
[346393763,1734937842964,-503.46959388,0.00019178,2]
[346393764,1734937842973,-503.30235521,0.00019178,2]
[346393765,1734937842982,-500.0,0.00019178,2]
[346393766,1734937842992,-500.0,0.00019178,2]
[346393767,1734937843001,-500.0,0.00019178,2]
[346393769,1734937843010,-641.74,0.00019178,2]
[346393770,1734937843020,-500.0,0.00019178,2]
[346393771,1734937843029,-500.0,0.00019178,2]
[346393772,1734937843038,-500.0,0.00019178,2]
[346393773,1734937843047,-500.0,0.00019178,2]
[346393774,1734937843056,-500.0,0.00019178,2]
[346393775,1734937843066,-503.35931746,0.00019178,2]
[346393776,1734937843076,-503.89865065,0.00019178,2]
[346393777,1734937843085,-500.0,0.00019178,2]
[346393778,1734937843095,-500.0,0.00019178,2]
[346393779,1734937843104,-500.0,0.00019178,2]
[346393780,1734937843113,-500.0,0.00019178,2]
[346393781,1734937843122,-654.39,0.00019178,2]
[346393782,1734937843131,-500.0,0.00019178,2]
[346393783,1734937843140,-500.0,0.00019178,2]
[346393784,1734937843149,-502.50291558,0.00019178,2]
[346393785,1734937843159,-500.0,0.00019178,2]
[346393786,1734937843168,-500.0,0.00019178,2]
[346393787,1734937843177,-500.0,0.00019178,2]
[346393788,1734937843187,-503.66870865,0.00019178,2]
[346393789,1734937843197,-506.63734908,0.00019178,2]
[346393790,1734937843206,-555.13,0.00019178,2]
[346393791,1734937843217,-500.0,0.00019178,2]
[346393792,1734937843226,-517.86205659,0.00019178,2]
[346393793,1734937843236,-509.510052,0.00019178,2]
[346393794,1734937843245,-500.0,0.00019178,2]
[346393795,1734937843255,-2265.7,0.00019178,2]
[346393796,1734937843264,-575.35,0.00019178,2]
[346393797,1734937843274,-901.03,0.00019178,2]
[346393798,1734937843283,-500.0,0.00019178,2]
[346393799,1734937843292,-500.0,0.00019178,2]
[346393800,1734937843301,-500.0,0.00019178,2]
[346393801,1734937843311,-500.0,0.00019178,2]
[346393802,1734937843321,-501.46489988,0.00019178,2]
[346393803,1734937843331,-697.28,0.00019178,2]
[346393804,1734937843340,-500.0,0.00019178,2]
[346393805,1734937843350,-519.98245074,0.00019178,2]
[346393806,1734937843359,-500.0,0.00019178,2]
[346393807,1734937843369,-500.0,0.00019178,2]
[346393808,1734937843379,-500.0,0.00019178,2]
[346393810,1734937843392,-500.0,0.00019178,2]
[346393812,1734937843401,-3041.76,0.00019178,2]
[346393813,1734937843410,-500.0,0.00019178,2]
[346393814,1734937843419,-871.12718302,0.00019178,2]
[346393815,1734937843732,-32.92281698,0.00019178,2]
[346393816,1734937843742,-708.29096374,0.00019178,2]
[346393817,1734937843751,-465.2205923,0.00019178,2]
[346393818,1734937843760,-500.0,0.00019178,2]
[346393819,1734937843770,-500.0,0.00019178,2]
[346393820,1734937843779,-500.0,0.00019178,2]
[346393821,1734937843789,-502.03525062,0.00019178,2]
[346393822,1734937843798,-564.74,0.00019178,2]
[346393823,1734937843807,-1193.05,0.00019178,2]
[346393824,1734937843816,-500.0,0.00019178,2]
[346393825,1734937843826,-500.0,0.00019178,2]
[346393826,1734937843836,-500.0,0.00019178,2]
[346393827,1734937843845,-500.0,0.00019178,2]
[346393828,1734937843854,-6352.84,0.00019178,2]
[346393829,1734937843863,-500.0,0.00019178,2]
[346393830,1734937843873,-500.0,0.00019178,2]
[346393831,1734937843882,-500.0,0.00019178,2]
[346393832,1734937843891,-500.0,0.00019178,2]
[346393833,1734937843900,-500.0,0.00019178,2]
[346393834,1734937843909,-500.0,0.00019178,2]
[346393835,1734937843918,-507.93224873,0.00019178,2]
[346393836,1734937843927,-500.0,0.00019178,2]
[346393837,1734937843937,-500.0,0.00019178,2]
[346393838,1734937843946,-500.0,0.00019178,2]
[346393839,1734937843955,-770.56,0.00019178,2]
[346393840,1734937843964,-500.0,0.00019178,2]
[346393841,1734937843973,-500.0,0.00019178,2]
[346393842,1734937843982,-500.0,0.00019178,2]
[346393843,1734937843997,-500.0,0.00019178,2]
[346393844,1734937844010,-500.0,0.00019178,2]
[346393845,1734937844020,-153.995425,0.00019178,2]
[346393846,1734937844031,-153.995425,0.00019178,2]
[346393847,1734937844042,-157.564534,0.00019178,2]
[346393848,1734937844052,-638.5,0.00019178,2]
[346393849,1734937844061,-500.0,0.00019178,2]
[346393850,1734937844071,-507.21097049,0.00019178,2]
[346393851,1734937844080,-850.16,0.00019178,2]
[346393852,1734937844090,-500.0,0.00019178,2]
[346393853,1734937844099,-500.0,0.00019178,2]
[346393854,1734937844108,-500.0,0.00019178,2]
[346393855,1734937844117,-3254.623732,0.00019178,2]
[346393856,1734937844127,-500.0,0.00019178,2]
[346393857,1734937844137,-500.0,0.00019178,2]
[346393858,1734937844147,-3254.623732,0.00019178,2]
[346393859,1734937844156,-3254.623732,0.00019178,2]
[346393860,1734937844165,-3254.623732,0.00019178,2]
[346393861,1734937844175,-500.0,0.00019178,2]
[346393862,1734937844184,-500.0,0.00019178,2]
[346393863,1734937844194,-1000.0,0.00019178,2]
[346393864,1734937844203,-500.0,0.00019178,2]
[346393865,1734937844213,-504.87740825,0.00019178,2]
[346393866,1734937844223,-500.0,0.00019178,2]
[346393867,1734937844232,-651.87,0.00019178,2]
[346393868,1734937844241,-3121.767242,0.00019178,2]
[346393869,1734937844250,-3121.767242,0.00019178,2]
[346393870,1734937844260,-3121.767242,0.00019178,2]
[346393871,1734937844269,-504.3309173,0.00019178,2]
[346393872,1734937844279,-3121.767242,0.00019178,2]
[346393873,1734937844288,-691.8,0.00019178,2]
[346393874,1734937844297,-500.0,0.00019178,2]
[346393875,1734937844307,-669.68,0.00019178,2]
[346393876,1734937844316,-602.28,0.00019178,2]
[346393877,1734937844325,-518.58,0.00019178,2]
[346393878,1734937844335,-500.0,0.00019178,2]
[346393879,1734937844344,-500.0,0.00019178,2]
[346393880,1734937844353,-500.0,0.00019178,2]
[346393881,1734937844362,-701.03,0.00019178,2]
[346393882,1734937844371,-585.74532885,0.00019178,2]
[346393883,1734937844387,-282.86467115,0.00019178,2]
[346393884,1734937844397,-503.94886883,0.00019178,2]
[346393885,1734937844406,-25.98693512,0.00019178,2]
[346393886,1734937844421,-474.01306488,0.00019178,2]
[346393887,1734937844431,-447.01243689,0.00019178,2]
[346393888,1734937844440,-500.0,0.00019178,2]
[346393889,1734937844449,-743.1,0.00019178,2]
[346393890,1734937844458,-500.0,0.00019178,2]
[346393891,1734937844468,-1167.97632052,0.00019178,2]
[346393892,1734937844480,-189.77367948,0.00019178,2]
[346393893,1734937844489,-899.25,0.00019178,2]
[346393894,1734937844499,-504.03309926,0.00019178,2]
[346393895,1734937844508,-503.67431761,0.00019178,2]
[346393896,1734937844517,-503.59477178,0.00019178,2]
[346393897,1734937844526,-500.0,0.00019178,2]
[346393898,1734937844535,-500.0,0.00019178,2]
[346393899,1734937844544,-500.0,0.00019178,2]
[346393900,1734937844553,-500.0,0.00019178,2]
[346393901,1734937844562,-595.18,0.00019178,2]
[346393902,1734937844571,-502.80149315,0.00019178,2]
[346393903,1734937844580,-500.0,0.00019178,2]
[346393904,1734937844590,-922.87903582,0.00019178,2]
[346393905,1734937844601,-455.61096418,0.00019178,2]
[346393906,1734937844610,-500.0,0.00019178,2]
[346393907,1734937844619,-795.48813198,0.00019178,2]
[346393908,1734937844641,-268.28055403,0.00019178,2]
[346393909,1734937844651,-474.445,0.00019178,2]
[346393910,1734937844662,-433.44516055,0.00019178,2]
[346393911,1734937844676,-479.08115344,0.00019178,2]
[346393912,1734937844685,-486.04243782,0.00019178,2]
[346393913,1734937844836,-13.95756218,0.00019178,2]
[346393914,1734937844845,-304.79423627,0.00019178,2]
[346393915,1734937844854,-500.0,0.00019178,2]
[346393916,1734937844864,-1401.58,0.00019178,2]
[346393917,1734937844873,-500.0,0.00019178,2]
[346393918,1734937844882,-500.0,0.00019178,2]
[346393919,1734937844891,-500.0,0.00019178,2]
[346393920,1734937844901,-500.0,0.00019178,2]
[346393921,1734937844910,-554.09,0.00019178,2]
[346393922,1734937844919,-564.47,0.00019178,2]
[346393923,1734937844928,-519.74,0.00019178,2]
[346393924,1734937844937,-1027.07,0.00019178,2]
[346393925,1734937844946,-500.0,0.00019178,2]
[346393926,1734937844955,-500.0,0.00019178,2]
[346393927,1734937844964,-1122.49,0.00019178,2]
[346393928,1734937844973,-500.0,0.00019178,2]
[346393929,1734937844982,-506.39623136,0.00019178,2]
[346393930,1734937844991,-1918.44,0.00019178,2]
[346393931,1734937845000,-500.63522145,0.00019178,2]
[346393932,1734937845009,-500.0,0.00019178,2]
[346393933,1734937845018,-500.0,0.00019178,2]
[346393934,1734937845027,-500.57280375,0.00019178,2]
[346393935,1734937845035,-155.75033166,0.00019178,2]
[346393936,1734937845044,-500.0,0.00019178,2]
[346393937,1734937845053,-569.38,0.00019178,2]
[346393938,1734937845062,-500.0,0.00019178,2]
[346393939,1734937845071,-829.44,0.00019178,2]
[346393940,1734937845086,-624.27,0.00019178,2]
[346393941,1734937845095,-1280.09,0.00019178,2]
[346393942,1734937845104,-1755.26,0.00019178,2]
[346393943,1734937845113,-155.91274938,0.00019178,2]
[346393944,1734937845126,-344.08725062,0.00019178,2]
[346393945,1734937845135,-129.56196422,0.00019178,2]
[346393946,1734937845729,-371.116431,0.00019178,2]
[346393947,1734937845738,-919.993569,0.00019178,2]
[346393952,1734937845786,-32.32811602,0.00019178,2]
[346393957,1734937845903,-92.33872659,0.00019178,2]
[346393958,1734937845928,-5817.30958839,0.00019178,2]
[346393959,1734937845938,-500.0,0.00019178,2]
[346393960,1734937845948,-500.0,0.00019178,2]
[346393961,1734937845957,-500.0,0.00019178,2]
[346393962,1734937845966,-500.0,0.00019178,2]
[346393963,1734937845975,-1159.69,0.00019178,2]
[346393964,1734937845984,-356.36302391,0.00019178,2]
[346393965,1734937845993,-503.17319081,0.00019178,2]
[346393966,1734937846003,-500.0,0.00019178,2]
[346393967,1734937846012,-500.0,0.00019178,2]
[346393968,1734937846021,-500.0,0.00019178,2]
[346393969,1734937846030,-500.0,0.00019178,2]
[346393970,1734937846040,-503.4591532,0.00019178,2]
[346393971,1734937846049,-819.46,0.00019178,2]
[346393972,1734937846058,-1518.29,0.00019178,2]
[346393973,1734937846067,-500.0,0.00019178,2]
[346393974,1734937846078,-500.0,0.00019178,2]
[346393975,1734937846087,-500.0,0.00019178,2]
[346393976,1734937846096,-500.0,0.00019178,2]
[346393977,1734937846106,-500.0,0.00019178,2]
[346393978,1734937846115,-500.0,0.00019178,2]
[346393979,1734937846124,-500.0,0.00019178,2]
[346393980,1734937846134,-501.49222162,0.00019178,2]
[346393981,1734937846143,-500.0,0.00019178,2]
[346393982,1734937846152,-1138.89,0.00019178,2]
[346393983,1734937846162,-501.16516623,0.00019178,2]
[346393984,1734937846171,-500.0,0.00019178,2]
[346393985,1734937846180,-575.50068653,0.00019178,2]
[346393986,1734937846190,-503.80885974,0.00019178,2]
[346393987,1734937846199,-9462.42,0.00019178,2]
[346393988,1734937846209,-500.0,0.00019178,2]
[346393989,1734937846219,-500.0,0.00019178,2]
[346393990,1734937846229,-503.86579168,0.00019178,2]
[346393991,1734937846238,-1090.66,0.00019178,2]
[346393992,1734937846247,-502.41224323,0.00019178,2]
[346393993,1734937846257,-824.51,0.00019178,2]
[346393994,1734937846266,-501.76911822,0.00019178,2]
[346393995,1734937846275,-2918.73,0.00019178,2]
[346393996,1734937846284,-500.0,0.00019178,2]
[346393997,1734937846293,-2017.95,0.00019178,2]
[346393998,1734937846302,-782.14,0.00019178,2]
[346393999,1734937846311,-502.31693674,0.00019178,2]
[346394000,1734937846320,-500.0,0.00019178,2]
[346394001,1734937846336,-500.0,0.00019178,2]
[346394003,1734937846356,-500.0,0.00019178,2]
[346394005,1734937846372,-500.0,0.00019178,2]
[346394007,1734937846382,-2018.61,0.00019178,2]
[346394009,1734937846394,-500.0,0.00019178,2]
[346394011,1734937846403,-504.72867302,0.00019178,2]
[346394012,1734937846413,-500.0,0.00019178,2]
[346394013,1734937846422,-1195.19,0.00019178,2]
[346394014,1734937846433,-500.0,0.00019178,2]
[346394015,1734937846442,-500.0,0.00019178,2]
[346394016,1734937846451,-752.05,0.00019178,2]
[346394017,1734937846460,-500.0,0.00019178,2]
[346394018,1734937846469,-801.99,0.00019178,2]
[346394019,1734937846479,-2889.52,0.00019178,2]
[346394020,1734937846488,-502.6809562,0.00019178,2]
[346394021,1734937846497,-500.0,0.00019178,2]
[346394022,1734937846507,-500.0,0.00019178,2]
[346394023,1734937846516,-500.0,0.00019178,2]
[346394024,1734937846525,-501.82420664,0.00019178,2]
[346394025,1734937846534,-504.4144805,0.00019178,2]
[346394026,1734937846543,-500.0,0.00019178,2]
[346394027,1734937846554,-503.74736821,0.00019178,2]
[346394028,1734937846563,-500.0,0.00019178,2]
[346394029,1734937846572,-500.0,0.00019178,2]
[346394030,1734937846588,-500.0,0.00019178,2]
[346394031,1734937846597,-500.0,0.00019178,2]
[346394032,1734937846607,-16460.89426954,0.00019178,2]
[346394033,1734937847160,-203.58,0.00018213,2]
[346394034,1734937847170,-2868.60069703,0.00019178,2]
[346394035,1734937847185,-751.09503343,0.00019178,2]
[346394036,1734937847198,-1729.33,0.00019178,2]
[346394037,1734937847211,-513.24,0.00019178,2]
[346394038,1734937847227,-500.0,0.00019178,2]
[346394039,1734937847239,-156.38005989,0.00019178,2]
[346394040,1734937847253,-500.0,0.00019178,2]
[346394041,1734937847266,-895.01,0.00019178,2]
[346394042,1734937847279,-500.0,0.00019178,2]
[346394043,1734937847293,-500.0,0.00019178,2]
[346394044,1734937847306,-500.0,0.00019178,2]
[346394045,1734937847319,-504.03778891,0.00019178,2]
[346394046,1734937847332,-1096.95,0.00019178,2]
[346394047,1734937847344,-500.0,0.00019178,2]
[346394048,1734937847357,-839.82,0.00019178,2]
[346394049,1734937847371,-500.0,0.00019178,2]
[346394050,1734937847385,-1208.93,0.00019178,2]
[346394051,1734937847399,-512.6794764,0.00019178,2]
[346394052,1734937847409,-500.0,0.00019178,2]
[346394053,1734937847420,-500.0,0.00019178,2]
[346394054,1734937847436,-500.70203326,0.00019178,2]
[346394055,1734937847449,-58.79510391,0.00019178,2]
[346394056,1734937847462,-445.91473178,0.00019178,2]
[346394057,1734937847472,-503.33231785,0.00019178,2]
[346394058,1734937847485,-569.86099299,0.00019178,2]
[346394059,1734937847500,-839.79900701,0.00019178,2]
[346394060,1734937847510,-507.47050427,0.00019178,2]
[346394061,1734937847521,-500.0,0.00019178,2]
[346394062,1734937847538,-1701.49,0.00019178,2]
[346394063,1734937847549,-61.16415929,0.00019178,2]
[346394064,1734937847564,-438.83584071,0.00019178,2]
[346394065,1734937847577,-500.0,0.00019178,2]
[346394066,1734937847590,-350.96915464,0.00019178,2]